Workbook

Sheet MYP, MSS
B1: Matti Helimo | E1: 28.1.1977
B2: YKKÖSPESIS | E2: Runkosarja | L2: Runkosarja TOP-10 | Q2: Jatkosarjat | X2: SUOMENSARJA | AA2: Runkosarja | AH2: Runkosarja TOP-10 | AM2: Jatkosarjat
B3: Vuosi | C3: Sija | D3: Seura | E3: OTT | F3: KUN | G3: LÖI | H3: TOI | I3: KL | J3: KL-% | L3: LÖI | M3: TOI | N3: L+T | O3: KL | Q3: OTT | R3: KUN | S3: LÖI | T3: TOI | U3: KL | V3: KL-% | X3: Vuosi | Y3: Sija | Z3: Seura | AA3: OTT | AB3: KUN | AC3: LÖI | AD3: TOI | AE3: KL | AF3: KL-% | AH3: LÖI | AI3: TOI | AJ3: L+T | AK3: KL | AM3: OTT | AN3: KUN | AO3: LÖI | AP3: TOI | AQ3: KL | AR3: KL-%
B4: 1993 | C4: 8. | D4: Manse PP | E4: 11 | F4: 0 | G4: 3 | H4: 2 | I4: 20
B6: 1996 | C6: 5. | D6: HPH | E6: 23 | F6: 1 | G6: 11 | H6: 5 | I6: 38
B8: 1998 | C8: 11. | D8: HPH | E8: 9 | F8: 0 | G8: 7 | H8: 3 | I8: 22
B9: 1998 | C9: 13. | D9: Paukku | E9: 8 | F9: 0 | G9: 1 | H9: 1 | I9: 15
X11: 2003 | Y11: 2. | Z11: Manse PP | AA11: 15 | AB11: 0 | AC11: 10 | AD11: 8 | AE11: 60 | AF11: 61.2 % | AG11: 98 | AM11: 5 | AN11: 0 | AO11: 3 | AP11: 0 | AQ11: 17 | AR11: 48.6 % | AS11: 35
X12: 2004 | Y12: 2. | Z12: Manse PP | AA12: 13 | AB12: 3 | AC12: 15 | AD12: 13 | AE12: 57 | AF12: 62.6 % | AG12: 91 | AM12: 4 | AN12: 0 | AO12: 1 | AP12: 0 | AQ12: 9 | AR12: 36.0 % | AS12: 25
X13: 2005 | Y13: 3. | Z13: Manse PP | AA13: 5 | AB13: 0 | AC13: 2 | AD13: 4 | AE13: 16 | AF13: 45.7 % | AG13: 35
X14: 2006 | Y14: 1. | Z14: Manse PP | AA14: 11 | AB14: 0 | AC14: 12 | AD14: 8 | AE14: 53 | AF14: 57.6 % | AG14: 92 | AM14: 4 | AN14: 1 | AO14: 2 | AP14: 3 | AQ14: 18 | AR14: 51.4 % | AS14: 35
B15: 2006 | C15: 16. | D15: JoKo | E15: 3 | F15: 0 | G15: 0 | H15: 0 | I15: 10 | J15: 37.0 %
B16: YHTEENSÄ | E16: =SUM(E4:E15) -> 54 | F16: =SUM(F4:F15) -> 1 | G16: =SUM(G4:G15) -> 22 | H16: =SUM(H4:H15) -> 11 | I16: =SUM(I4:I15) -> 105 | K16: =SUM(K4:K15) -> 0 | Q16: =SUM(Q4:Q15) -> 0 | R16: =SUM(R4:R15) -> 0 | S16: =SUM(S4:S15) -> 0 | T16: =SUM(T4:T15) -> 0 | U16: =SUM(U4:U15) -> 0 | V16: 0.0 % | W16: =SUM(W4:W15) -> 0 | X16: YHTEENSÄ | AA16: =SUM(AA4:AA15) -> 44 | AB16: =SUM(AB4:AB15) -> 3 | AC16: =SUM(AC4:AC15) -> 39 | AD16: =SUM(AD4:AD15) -> 33 | AE16: =SUM(AE4:AE15) -> 186 | AF16: =PRODUCT(AE16/AG16) -> 58.9 % | AG16: =SUM(AG4:AG15) -> 316 | AM16: =SUM(AM4:AM15) -> 13 | AN16: =SUM(AN4:AN15) -> 1 | AO16: =SUM(AO4:AO15) -> 6 | AP16: =SUM(AP4:AP15) -> 3 | AQ16: =SUM(AQ4:AQ15) -> 44 | AR16: =PRODUCT(AQ16/AS16) -> 46.3 % | AS16: =SUM(AS4:AS15) -> 95
B18: KAIKKI OTTELUT | E18: OTT | F18: KUN | G18: LÖI | H18: TOI | I18: KL | J18: KL-% | L18: ka/L | M18: ka/T | N18: ka/l+t | O18: ka/kl | R18: Seurat | T18: Manse PP = Mansen Pesäpallo (1978), kasvattajaseura
B19: SUPERPESIS | E19: 0 | F19: 0 | G19: 0 | H19: 0 | I19: 0 | J19: 0.0 % | K19: 0 | L19: 0.00 | M19: 0.00 | N19: 0.00 | O19: 0.00 | T19: HPH = Hämeen Pesä-Haukat (1995)
B20: YKKÖSPESIS | E20: =PRODUCT(E16+Q16) -> 54 | F20: =PRODUCT(F16+R16) -> 1 | G20: =PRODUCT(G16+S16) -> 22 | H20: =PRODUCT(H16+T16) -> 11 | I20: =PRODUCT(I16+U16) -> 105 | K20: =PRODUCT(K16+W16) -> 0 | L20: =PRODUCT((F20+G20)/E20) -> 0.43 | M20: =PRODUCT(H20/E20) -> 0.20 | N20: =PRODUCT((F20+G20+H20)/E20) -> 0.63 | O20: =PRODUCT(I20/E20) -> 1.94 | T20: Paukku = Hämeenlinnan Paukku (1961)
B21: SUOMENSARJA | E21: =PRODUCT(AA16+AM16) -> 57 | F21: =PRODUCT(AB16+AN16) -> 4 | G21: =PRODUCT(AC16+AO16) -> 45 | H21: =PRODUCT(AD16+AP16) -> 36 | I21: =PRODUCT(AE16+AQ16) -> 230 | J21: =PRODUCT(I21/K21) -> 56.0 % | K21: =PRODUCT(AG16+AS16) -> 411 | L21: =PRODUCT((F21+G21)/E21) -> 0.86 | M21: =PRODUCT(H21/E21) -> 0.63 | N21: =PRODUCT((F21+G21+H21)/E21) -> 1.49 | O21: =PRODUCT(I21/E21) -> 4.04 | T21: Manse PP* = Manse PP, Tampere (2005)
B22: YHTEENSÄ | E22: =SUM(E19:E21) -> 111 | F22: =SUM(F19:F21) -> 5 | G22: 67 | H22: 47 | I22: 335 | K22: =SUM(K19:K21) -> 411 | L22: =PRODUCT((F22+G22)/E22) -> 0.65 | M22: =PRODUCT(H22/E22) -> 0.42 | N22: =PRODUCT((F22+G22+H22)/E22) -> 1.07 | O22: =PRODUCT(I22/E22) -> 3.02 | T22: JoKo = Jokioisten Koetus (1902)

Sheet Pelinjohtaja
B1: PELINJOHTAJAKORTTI
B2: Matti Helimo | D2: 28.1.1977
B3: NSU | C3: Runkosarja | J3: Ylempi loppusarja | N3: Alempi loppusarja | R3: Mitalit | U3: Huomautuksia
B4: Vuosi | C4: Seura | D4: Sija | E4: O | F4: V | G4: H | H4: Voitto-% | J4: O | K4: V | L4: H | M4: Voitto-% | N4: O | O4: V | P4: H | Q4: Voitto-% | R4: 1 | S4: 2 | T4: 3
B5: 2000 | C5: Manse PP | D5: 11. | E5: 22 | F5: 7 | G5: 15 | H5: =PRODUCT(F5/E5) -> 31.8 % | N5: 7 | O5: 5 | P5: 2 | Q5: =PRODUCT(O5/N5) -> 71.4 % | U5: karsintasarja
B6: 2001 | C6: Manse PP | D6: 12. | E6: 24 | F6: 5 | G6: 19 | H6: =PRODUCT(F6/E6) -> 20.8 % | N6: 7 | O6: 3 | P6: 4 | Q6: =PRODUCT(O6/N6) -> 42.9 % | U6: karsintasarja
B7: Yhteensä | E7: 46 | F7: 12 | G7: 34 | H7: 26.1 % | J7: 0 | K7: 0 | L7: 0 | M7: 0.0 % | N7: 14 | O7: 8 | P7: 6 | Q7: 57.1 % | R7: 0 | S7: 0 | T7: 0
B9: URA SUPERISSA | E9: O | F9: V | G9: H | H9: Voitto-% | J9: PLAY OFF | M9: SARJAT | N9: O | O9: V | P9: H | Q9: Voitto-%
B10: Runkosarja | E10: =PRODUCT(E7) -> 46 | F10: =PRODUCT(F7) -> 12 | G10: =PRODUCT(G7) -> 34 | H10: =PRODUCT(F10/E10) -> 26.1 % | J10: Puolivälierät
B11: Ylempi loppusarja | J11: Välierät
B12: Alempi loppusarja | E12: =PRODUCT(N7) -> 14 | F12: =PRODUCT(O7) -> 8 | G12: =PRODUCT(P7) -> 6 | H12: =PRODUCT(F12/E12) -> 57.1 % | J12: Finaalit
B13: KAIKKI | E13: =SUM(E10:E12) -> 60 | F13: =SUM(F10:F12) -> 20 | G13: =SUM(G10:G12) -> 40 | H13: =PRODUCT(F13/E13) -> 33.3 % | J13: KAIKKI
B15: Seurat: | C15: Manse PP = Mansen Pesäpallo (1978)
